Cogmind - Beta 13 @@@ ROGUE MODE // 2024.06.22 @ 13:45:21 Player: CONNOR_M Result: Destroyed by B-75 Beast with Heavy Plasma Cannon Performance ------------- Evolutions (1) 500 Regions Visited (5) 1000 Robots Destroyed (35) 175 Value Destroyed (961) 961 Prototype IDs (2) 40 Alien Tech Used (0) 0 Bonus (674) 674 TOTAL SCORE: 3350 Bonus ------- Follower Combat Kills 80 Met Imprinter 300 Was Imprinted 300 Friendly Fire -6 Cogmind --------- Core Integrity 0/400 Matter 290/300 Energy 290/290 System Corruption 0% Temperature Cool (12) Movement Treading (170) Location -6/Proximity Caves Parts ------- > --- POWER (1) -------- Improved Deuterium Engine > --- PROPULSION (2) --- Armored Treads Armored Treads > --- UTILITY (4) ------ Medium Storage Unit Phase Shifter Makeshift Light Armor Plating > --- WEAPON (2) ------- CR-A16's Pointy Stick > --- INVENTORY (10) --- Ion Engine Armored Treads Medium Treads Makeshift Flight Unit Salvage Targeting Computer Hacking Suite Tractor Beam Hacking Drone Bay (1/1) Peak State ------------ > --- POWER ------------ Makeshift Power Source > --- PROPULSION ------- Wheel Wheel > --- UTILITY ---------- Medium Storage Unit Seismic Detector Makeshift Light Armor Plating Phasing AFG > --- WEAPON ----------- Heavy Assault Rifle Makeshift Shrapnel Gun > --- INVENTORY -------- Ion Engine Ion Engine Structural Scanner Hacking Suite Tractor Beam Hacking Drone Bay Rocket Launcher Rocket Launcher Rocket Launcher Makeshift Axe [Rating: 33] Favorites ----------- Power Makeshift Power Source Engine Makeshift Power Source Propulsion Wheel Treads Armored Treads Leg Aluminum Leg Wheel Wheel Utility Medium Storage Unit Device Seismic Detector Storage Medium Storage Unit Protection Makeshift Light Armor Plating Weapon Heavy Assault Rifle Energy Gun Small Laser Ballistic Gun Heavy Assault Rifle Ballistic Cannon Light Cannon Launcher Rocket Launcher Special Weapon Mining Laser Piercing Weapon CR-A16's Pointy Stick Build | -11 -10 -9 -9 -7 -6 ------- Run | Yrd Mat Mat Min Zio Pro Slots Evolved 2 | . . 2 . . . Power . | . . . . . . Propulsion . | . . . . . . Utility 2 | . . 2 . . . Weapon . | . . . . . . Parts Attached 39 | 7 7 7 . 8 10 Power 4 | 1 . 1 . 1 1 Engine 4 | 1 . 1 . 1 1 Core . | . . . . . . Reactor . | . . . . . . Propulsion 7 | 2 2 1 . . 2 Treads 2 | . . . . . 2 Leg 2 | 2 . . . . . Wheel 3 | . 2 1 . . . Hover . | . . . . . . Flight . | . . . . . . Utility 14 | 2 1 3 . 6 2 Device 5 | 1 . . . 3 1 Storage 2 | 1 1 . . . . Processor . | . . . . . . Hackware . | . . . . . . Protection 7 | . . 3 . 3 1 Artifact . | . . . . . . Weapon 14 | 2 4 2 . 1 5 Energy Gun 1 | 1 . . . . . Energy Cannon . | . . . . . . Ballistic Gun 4 | 1 . 1 . 1 1 Ballistic Cannon 4 | . 3 1 . . . Launcher 3 | . . . . . 3 Special Weapon 1 | . 1 . . . . Impact Weapon . | . . . . . . Slashing Weapon . | . . . . . . Piercing Weapon 1 | . . . . . 1 Special Melee Weapon . | . . . . . . Unidentified Prototypes 2 | . . . . 2 . Parts Lost 12 | . . 1 . . 11 Power 1 | . . . . . 1 Propulsion 2 | . . . . . 2 Utility 4 | . . 1 . . 3 Weapon 5 | . . . . . 5 Highest Loss Streak 9 | . . 1 . . 9 To Critical Strikes . | . . . . . . Average Slot Usage (%) 93 | . 100 94 88 99 77 Engine 10 | . 14 11 11 11 9 Treads 3 | . . . . . 14 Leg 1 | . 14 . . . . Wheel 16 | . 13 18 22 22 4 Device 12 | . 14 11 11 15 6 Storage 11 | . 14 11 11 11 11 Protection 14 | . . 20 11 17 11 Ballistic Gun 13 | . 12 3 11 18 11 Ballistic Cannon 5 | . 13 18 11 3 . Launcher 1 | . . . . . 7 Naked Turns . | . . . . . . Heaviest Build 33 | 11 20 28 25 33 31 Greatest Support 40 | 20 20 20 20 20 40 Greatest Overweight (x) 6 | 1 . 2 1 1 6 Average Overweight (x) . | . . 1 1 1 . Largest Inventory Capacity 10 | 8 10 10 10 10 10 Average Capacity 9 | 7 8 10 10 10 10 Most Carried 10 | 8 9 10 9 10 10 Average Carried 8 | 4 8 9 9 9 8 Final Capacity 10 | 8 10 10 10 10 10 Final Carried 10 | 7 9 9 9 10 8 Class Distribution -------------------- 48% | Mutant 41% | Scavenger-Mutant 10% | Derelict-Mutant Dominant Class ---------------- Mutant | -10/Materials Mutant | -9/Materials Scavenger-Mutant | -9/Mines Scavenger-Mutant | -7/Zion Scavenger-Mutant | -6/Proximity Caves Resources | -11 -10 -9 -9 -7 -6 ----------- Run | Yrd Mat Mat Min Zio Pro Matter Collected 1107 | 277 172 306 . 93 259 Remotely . | . . . . . . Salvage Created 1180 | 122 175 609 . . 274 Parts 69 | 9 20 31 . . 9 Haulers Intercepted 1 | . . 1 . . . Recyclers Shooed 2 | 2 . . . . . Parts Field Recycled . | . . . . . . Retrieved Matter . | . . . . . . Parts Self-Destructed 13 | . . . . . 13 Prevented 3 | . . . . . 3 Kills | -11 -10 -9 -9 -7 -6 ------- Run | Yrd Mat Mat Min Zio Pro Combat Hostiles Destroyed 21 | . 5 8 . . 8 Melee 1 | . . . . . 1 Guns 4 | . 1 . . . 3 Cannons 12 | . 4 8 . . . AOE 4 | . . . . . 4 Classes Destroyed 11 | 2 4 4 . . 1 Builder 1 | . . 1 . . . Tunneler 2 | 2 . . . . . Hauler 1 | . . 1 . . . Recycler 6 | 1 1 4 . . . Operator 3 | . 2 1 . . . Watcher 1 | . 1 . . . . Swarmer 4 | . 3 . . . 1 Grunt 11 | . 2 4 . . 5 Duelist 1 | . . 1 . . . Sentry 4 | . . 3 . . 1 Hunter 1 | . . . . . 1 Best Kill Streak 8 | 1 5 8 . . 6 Combat Bots Only 6 | . 3 4 . . 6 Max Kills in Single Turn 2 | 1 1 1 . . 2 Gunslinging . | . . . . . . Exploded 2 | . . . . . 2 Melee 1 | . . . . . 1 Uniques/NPCs Destroyed . | . . . . . . Combat | -11 -10 -9 -9 -7 -6 -------- Run | Yrd Mat Mat Min Zio Pro Hostile Shots Fired 224 | . 16 33 . . 175 Missed 74 | . 6 11 . . 57 Damage Taken 2002 | . 82 310 . . 1610 Core 416 | . 10 10 . . 396 Absorbed by Shields . | . . . . . . Core Remaining (%) 98 | 100 96 . . . . Volleys Fired 90 | 17 18 36 . . 19 Largest 2 | 2 2 2 . . 2 Hottest 120 | 60 120 70 . . 66 Shots Fired 171 | 34 36 70 . . 31 Gun 74 | 34 16 4 . . 20 Cannon 85 | . 19 66 . . . Launcher 11 | . . . . . 11 Special 1 | . 1 . . . . Kinetic 142 | 17 35 70 . . 20 Thermal 18 | 17 1 . . . . Explosive 11 | . . . . . 11 Electromagnetic . | . . . . . . Robot Hit Streak 15 | 3 8 15 . . 6 Robot Miss Streak 6 | 2 4 3 . . 6 Penetration Max . | . . . . . . Secondary Targets . | . . . . . . Shots Hit Robots 105 | 18 19 46 . . 22 Core Hits 63 | 6 11 19 . . 27 Critical Kills . | . . . . . . Critical Parts Destroyed . | . . . . . . Critical Strikes 3 | . 1 2 . . . Blast 3 | . 1 2 . . . Melee Attacks 4 | . . . . . 4 Impact . | . . . . . . Slashing . | . . . . . . Piercing 4 | . . . . . 4 Sneak Attacks . | . . . . . . Combat Hostiles . | . . . . . . Follow-up Attacks . | . . . . . . Damage Inflicted 2168 | 165 275 822 . . 906 Guns 529 | 165 52 64 . . 248 Cannons 981 | . 223 758 . . . Explosions 558 | . . . . . 558 Melee 100 | . . . . . 100 Ramming . | . . . . . . Kinetic 1420 | 75 275 822 . . 248 Thermal 90 | 90 . . . . . Explosive 558 | . . . . . 558 Electromagnetic . | . . . . . . Impact . | . . . . . . Slashing . | . . . . . . Piercing 100 | . . . . . 100 Highest Corruption 1 | . . 1 1 1 . Average Corruption 1 | . . 1 1 1 . Corruption Purged . | . . . . . . Corruption Blocked . | . . . . . . Effects 4 | . . 4 . . . Matter Fused 1 | . . 1 . . . Heat Flow Errors 1 | . . 1 . . . Energy Discharges 1 | . . 1 . . . Data Loss (major) 1 | . . 1 . . . Overload Shots . | . . . . . . Overflow Damage 9 | . . . . . 9 Projectiles . | . . . . . . Explosions 9 | . . . . . 9 Melee . | . . . . . . Knockbacks 10 | . 3 7 . . . Impact . | . . . . . . Kinetic 10 | . 3 7 . . . Secondary . | . . . . . . Self-Inflicted Damage 81 | . . . . . 81 Shots 4 | . . . . . 4 Rammed . | . . . . . . Targets Rammed . | . . . . . . Kicked . | . . . . . . Crushed . | . . . . . . Highest Temperature 291 | 40 40 143 . . 291 Average Temperature 63 | 16 12 38 . . 169 Received Heat Transfer 603 | . 12 105 . . 486 Effects 2 | . . . . . 2 Interference 2 | . . . . . 2 Siege Activations . | . . . . . . Robots Corrupted . | . . . . . . Combat Hostiles . | . . . . . . Parts Fried . | . . . . . . Impact Corruptions . | . . . . . . Robots Melted . | . . . . . . Combat Hostiles . | . . . . . . Parts Melted . | . . . . . . Heat Transferred 200 | 200 . . . . . Parts Sabotaged . | . . . . . . Parts Stolen . | . . . . . . Parts Stripped . | . . . . . . Power Chain Reactions . | . . . . . . Alert | -11 -10 -9 -9 -7 -6 ------- Run | Yrd Mat Mat Min Zio Pro Peak Influence 392 | 15 268 392 85 . . Initial 113 | . 9 113 85 . . Average 144 | 5 109 244 85 . . Maximum Alert Level 1 | . 1 1 . . . Low Security (%) 70 | 100 88 42 100 . . Level 1 29 | . 11 57 . . . Level 2 . | . . . . . . Level 3 . | . . . . . . Level 4 . | . . . . . . Level 5 . | . . . . . . High Security . | . . . . . . Max Security . | . . . . . . Squads Dispatched 3 | . 1 2 . . . Investigation . | . . . . . . Extermination . | . . . . . . Reinforcement 3 | . 1 2 . . . Assault . | . . . . . . Garrison . | . . . . . . Intercept . | . . . . . . Searches Triggered . | . . . . . . Construction Impeded . | . . . . . . Haulers Reinforced . | . . . . . . Active Scanning Responses . | . . . . . . Cargo Convoy Interrupts . | . . . . . . Stealth | -11 -10 -9 -9 -7 -6 --------- Run | Yrd Mat Mat Min Zio Pro Distress Signals 5 | . 4 1 . . . Communications Jammed . | . . . . . . Distress Signals . | . . . . . . Times Spotted 55 | . 14 20 . . 21 Peak Tracking Total 7 | . 5 7 . . 6 Tactical Retreats 5 | . 1 . . . 4 Traps | -11 -10 -9 -9 -7 -6 ------- Run | Yrd Mat Mat Min Zio Pro Traps Triggered 4 | . . 4 . . . Indirectly . | . . . . . . Trap Hack Attempts . | . . . . . . Triggered . | . . . . . . Disarmed . | . . . . . . Reprogrammed . | . . . . . . Reused . | . . . . . . Traps Extracted . | . . . . . . Installed . | . . . . . . Triggered . | . . . . . . Machines | -11 -10 -9 -9 -7 -6 ---------- Run | Yrd Mat Mat Min Zio Pro Machines Disabled 1 | . 1 . . . . Max in Single Turn 1 | . 1 . . . . Machines Repaired . | . . . . . . Machines Dismantled . | . . . . . . Machines Sabotaged . | . . . . . . Overloaded Fab Kills . | . . . . . . Hacking | -11 -10 -9 -9 -7 -6 --------- Run | Yrd Mat Mat Min Zio Pro Machines Accessed 6 | . 3 3 . . . Terminals 5 | . 3 2 . . . Fabricators . | . . . . . . Repair Stations . | . . . . . . Recycling Units 1 | . . 1 . . . Scanalyzers . | . . . . . . Garrison Access . | . . . . . . Total Hacks 17 | . 9 8 . . . Successful 6 | . 2 4 . . . Failed 11 | . 7 4 . . . Catastrophic 2 | . 2 . . . . Database Lockouts . | . . . . . . Manual 9 | . 7 2 . . . Terminals 16 | . 9 7 . . . Fabricators . | . . . . . . Repair Stations . | . . . . . . Recycling Units 1 | . . 1 . . . Scanalyzers . | . . . . . . Garrison Access . | . . . . . . Terminal Hacks 4 | . 1 3 . . . Terminal Index 1 | . . 1 . . . Hauler Manifests 2 | . 1 1 . . . Zone Layout 1 | . . 1 . . . Fabricator Hacks . | . . . . . . Repair Station Hacks . | . . . . . . Recycling Unit Hacks 1 | . . 1 . . . Report Inventory 1 | . . 1 . . . Scanalyzer . | . . . . . . Garrison Access Hacks . | . . . . . . Unauthorized Hacks 1 | . 1 . . . . Terminals 1 | . 1 . . . . Operators 1 | . 1 . . . . Fabricators . | . . . . . . Repair Stations . | . . . . . . Recycling Units . | . . . . . . Scanalyzers . | . . . . . . Garrison Access . | . . . . . . Data Cores Recovered 1 | . 1 . . . . Used 1 | . 1 . . . . Hacking Detections 5 | . 2 3 . . . Full Trace Events . | . . . . . . Feedback Events . | . . . . . . Feedback Blocked . | . . . . . . Robot Schematics Acquired 3 | . . . . 3 . Robots Built . | . . . . . . Authchips . | . . . . . . Time . | . . . . . . Total Robot Build Rating . | . . . . . . Part Schematics Acquired 13 | . . . . 13 . Parts Built . | . . . . . . Authchips . | . . . . . . Time . | . . . . . . Total Part Build Rating . | . . . . . . Parts Repaired . | . . . . . . Time . | . . . . . . Parts Recycled . | . . . . . . Recycled Matter . | . . . . . . Retrieved Matter . | . . . . . . Retrieved Components . | . . . . . . Parts Scanalyzed . | . . . . . . Part Schematics Acquired . | . . . . . . Parts Damaged . | . . . . . . Bothacking | -11 -10 -9 -9 -7 -6 ------------ Run | Yrd Mat Mat Min Zio Pro Used RIF Installer . | . . . . . . Robots Hacked . | . . . . . . Non-combat . | . . . . . . Combat . | . . . . . . Robot Hacks Applied . | . . . . . . Relay Couplers Released . | . . . . . . Fabnet Peak Effective % . | . . . . . . Robots Rewired . | . . . . . . Allies Hacked . | . . . . . . Hacks Repelled . | . . . . . . Allies | -11 -10 -9 -9 -7 -6 -------- Run | Yrd Mat Mat Min Zio Pro Total Allies 4 | . . . . 4 . Largest Group 4 | . . . . 4 4 Highest-Rated Group 158 | . . . . 158 158 Highest-Rated Ally 41 | . . . . 41 41 Total Orders . | . . . . . . Ally Attacks 16 | . . . . . 16 Total Damage 333 | . . . . . 333 Kills 6 | . . . . . 6 Allies Corrupted . | . . . . . . Allies Melted . | . . . . . . Intel | -11 -10 -9 -9 -7 -6 ------- Run | Yrd Mat Mat Min Zio Pro Robot Analysis Total . | . . . . . . Derelict Logs Recovered 2 | . . . . 2 . Drone Launches . | . . . . . . Drone Recoveries . | . . . . . . Exploration | -11 -10 -9 -9 -7 -6 ------------- Run | Yrd Mat Mat Min Zio Pro Turns Passed 3257 | 224 314 430 6 1550 733 Spaces Moved 2601 | 134 251 288 7 1491 430 Core 13 | 8 . . . . 5 Treads 286 | . . . . . 286 Legs 231 | 126 105 . . . . Wheels 2071 | . 146 288 7 1491 139 Hover . | . . . . . . Flight . | . . . . . . Fastest Speed 50 | 50 80 95 95 95 95 Average Speed 106 | 118 96 99 95 95 151 Slowest Speed 350 | 190 120 110 95 95 350 Overloaded Moves . | . . . . . . Propulsion Burnouts . | . . . . . . Robots Hopped . | . . . . . . Cave-ins Triggered . | . . . . . . Exploration Rate (%) 35 | 5 39 26 5 90 45 Regions Visited 5 Branch Regions 3 Pre-discovered Areas 1 | . . . . 1 . Known Exits Taken . | . . . . . . Unknown Exits Taken 5 | 1 1 1 1 1 . Scrap Searched 4 | . . . . 4 . Spaces Dug 1 | . 1 . . . . Terrain Destroyed 82 | . 1 . . . 81 Melee . | . . . . . . Projectile 1 | . 1 . . . . AOE 81 | . . . . . 81 Terrain Rammed . | . . . . . . Walls Destroyed . | . . . . . . Machines Disabled . | . . . . . . Actions | -11 -10 -9 -9 -7 -6 --------- Run | Yrd Mat Mat Min Zio Pro Total 2917 | 165 287 361 6 1626 472 Wait 132 | . 2 19 . 111 . Move 2596 | 133 250 287 6 1490 430 Hop . | . . . . . . Pick Up 32 | 8 5 7 . 6 6 Fast Attach 19 | 6 1 3 . 5 4 Attach 12 | 1 2 3 . 1 5 Detach 1 | . . . . 1 . Swap 8 | . 4 1 . 2 1 Drop 23 | . 5 5 . 10 3 Fire 90 | 17 18 36 . . 19 Melee 4 | . . . . . 4 Ram . | . . . . . . Kick . | . . . . . . Crush . | . . . . . . Escape Stasis . | . . . . . . Rewire . | . . . . . . Trap . | . . . . . . Miscellaneous . | . . . . . . Route ------- -11/Scrapyard -10/Materials -9/Materials -9/Mines -7/Zion -6/Proximity Caves History --------- Turn | Location | Event 10 | -11/Scrapyard | Discovered new exit (range 16) 225 | -11/Scrapyard | Entered Materials 304 | -10/Materials | Build established: Mutant 351 | -10/Materials | Discovered new exit (range 16) 539 | -10/Materials | Entered another Materials area 539 | -9/Materials | Evolved 2 slots: Utility x2 964 | -9/Materials | Discovered new exit (range 6) 969 | -9/Materials | Entered Mines 970 | -9/Mines | A Derelict revealed a hidden shortcut to a safe place 975 | -9/Mines | Entered Zion 1014 | -7/Zion | System corruption cleaned by Quarantine Array 1266 | -7/Zion | Given A8's code to call for help 1277 | -7/Zion | Learned 4 Factory zone layouts 1332 | -7/Zion | Given the Hacking Drone Bay 1332 | -7/Zion | Found Prototype Device 1336 | -7/Zion | Identified Hacking Drone Bay 1791 | -7/Zion | Found Prototype Device 1791 | -7/Zion | Identified Phasing AFG 1833 | -7/Zion | Build established: Derelict-Mutant 2114 | -7/Zion | Imprinted 2116 | -7/Zion | Declared Zion's savior 2185 | -7/Zion | Build established: Scavenger-Mutant 2399 | -7/Zion | Found CR-A16's Pointy Stick 2473 | -7/Zion | Discovered new exit (range 16) 2525 | -7/Zion | Entered Proximity Caves 2525 | -6/Proximity Caves | Accompanied by 4 allies 2651 | -6/Proximity Caves | Attracted the attention of an 0b10 checkpoint 2685 | -6/Proximity Caves | Core integrity fell below 50% 2693 | -6/Proximity Caves | Lost 3 allies 2711 | -6/Proximity Caves | Core integrity fell below 20% 2737 | -6/Proximity Caves | Lost 9 parts (1p2n3u3w) 3257 | -6/Proximity Caves | Spotted B-75 Beast 3258 | -6/Proximity Caves | Destroyed by B-75 Beast with Heavy Plasma Cannon Last Messages --------------- 03072_ TF-SL3(k) breaks down the debris. 03078_ Acquired Corrupted Lgt. Nuclear Core. 03079_ Acquired 15 matter. 03082_ Dropped Corrupted Lgt. Nuclear Core. 03085_ Acquired 30 matter. 03090_ Acquired 24 matter. 03149_ Acquired 21 matter. 03155_ Slug penetrates Wall. 03155_ Rocket Launcher destroyed. 03157_ Acquired 4 matter. 03161_ Slug penetrates Wall. 03161_ Hvy. Assault Rifle destroyed. 03161_ Slug penetrates Wall. 03164_ Penetrated by Slug. 03180_ H-66 Slayer destroyed. 03183_ Acquired 27 matter. 03184_ Flexi-carbon Leg fries itself beyond repair. 03186_ Acquired Phase Shifter. 03188_ Targeting Computer fries itself beyond repair. 03190_ Flexi-carbon Leg fries itself beyond repair. Map ----- +----------------------------------------------------+ | ?????????????????????????????????????????????????? | | ?????????????????????????????????????????????????? | | ?????????????????????????????????????????????????? | | ?????????????????????????????????????????????????? | | ?????????????????????????????????????????????????? | | ?????????????????????????????????????????????????? | | ?????????????????????????????????????????????????? | | ?????????????????????????????????????????????????? | | ????????????????????????????????????????????????? | | ????????????????????????????????????????????????? | | ?????????????????????????????????????????????????? | | ????????????????????? ???????????????????????????? | | ????????????????? ???#???????????????????????? | | #######?????????????? ### ##?????????????????????? | | #######????????????? ###???????????????????? | | ## ###????????????? ???????????????????? | | ##??????????????BB ???????????????????? | | #####???????????BB ????????????????????? | | ### ###?????????? ????????????????????? | | ## #####???????? #????????????????????? | | ### ###?????? ?????????????????????? | | ##?????# ?????????????????????? | | ####?## ??????????????????????? | | ## ## ### ??????????????????????? | | ##### ### ## #????####??????????????? | | ## #?# ## @##### #??????????????? | | ### ### ## #??????????????? | | ## ### ### #??????????????? | | ## ### ##??????????????? | | ?# % #### ##???????????????? | | ?####### ### #????????????????? | | ???????## #### ### ###??????????????? | | ##### #### ### ##?????????????? | | ## #?????????????? | | ##?????????????? | | ### #### #??????????????? | | ### #??#### #?????????????? | | # ## #?## ####???# ##?????????????? | | ?#######?# #### ##???###??????????????? | | ?????????# #????????????????????? | | ?????????# #### #????????????????????? | | ?????????### #??## #????????????????????? | | ???????????? ???## ## #????????????????????? | | ????????????##????## #?## #????????????????????? | | ???????????????????# #??? #????????????????????? | | ???????????????????# #??? #????????????????????? | | ???????????????????# *#???? ????????????????????? | | ???????????????????#!%#???? ???????????????????? | | ???????????????????# ! ?????? ??????????????????? | | ???????????????????####??????? ?????????????????? | +----------------------------------------------------+ Best States ------------- Heat Dissipation 28 Energy Generation 16 Energy Capacity 290 Matter Stores 300 Matter Capacity 300 Sight Range 16 Terrain Scan Density 10 Armor Coverage 325 Phase Shifting 5 Evasion (%) 55 Recoil Reduction 2 Item Schematics ----------------- Med. Reactive Plating | -7/Zion | Archive Adv. Melee Analysis Suite | -7/Zion | Archive Energy Filter | -7/Zion | Archive Stasis Canceller | -7/Zion | Archive Angular Momentum Engine | -7/Zion | Archive Gatling Laser | -7/Zion | Archive Imp. Recalibrator | -7/Zion | Archive Mak. Trap Scanner | -7/Zion | Archive Core Analyzer | -7/Zion | Archive Imp. Reaction Control System | -7/Zion | Archive Imp. Shield Generator | -7/Zion | Archive Enh. Optical Array | -7/Zion | Archive Mak. System Shield | -7/Zion | Archive Robot Schematics ------------------ S-27 Virus | -7/Zion | Archive B-48 Gladiator | -7/Zion | Archive O-24 Administrator | -7/Zion | Archive Fabricated ------------ Nothing Alien Tech Used ----------------- None Achievements -------------- None Challenges ------------ None Game ------ Seed PiercingHackingSpoofer Manual? 0 Play Time 00:38:08 Cumulative 36.4 hours Start 2024.06.22 @ 13:03:23 End 2024.06.22 @ 13:45:21 Sessions 1 Manual Loads 0 Difficulty Rogue Special Mode None Game No. 67 Rogue 67 Adventurer 0 Explorer 0 Win Type - Total 0 Types 0/0/0/0/0/0/0/0/0 Lore% 23 Gallery% 24 Achievement% 26 Wizard Run 0 Options --------- Layout 0 ASCII 0 Keyboard 0 Movement Arrows Keybinds 0 Fullscreen 2 Font 18/SmallcapsGlow Map View 76x50 Zoom Use 0% Tactical HUD 1 Map Filters NONE Filters NONE Steam 1 RUN: 9d7d09c8-d792-42d2-9f82-44cb2a3b2bba